Cogmind - Beta 14 @@@ ROGUE MODE // 2024.11.11 @ 00:33:38 Player: Zunekagek Result: Destroyed by G-34 Mercenary with Small Laser Performance ------------- Evolutions (1) 500 Regions Visited (3) 600 Robots Destroyed (44) 220 Value Destroyed (920) 920 Prototype IDs (0) 0 Alien Tech Used (0) 0 Bonus (0) 0 TOTAL SCORE: 2240 Bonus ------- None Cogmind --------- Core Integrity 0/400 Matter 300/300 Energy 100/100 System Corruption 0% Temperature Cool (18) Movement Core (150) Ox2 Location -9/Materials Parts ------- > --- POWER (1) -------- (None) > --- PROPULSION (3) --- (None) > --- UTILITY (2) ------ Small Storage Unit Improved Targeting Computer > --- WEAPON (3) ------- Maul > --- INVENTORY (8) ---- Improved Ion Engine Improved Heat Sink Light Armor Plating Improved Light Cannon Improved Light Cannon Peak State ------------ > --- POWER ------------ Ion Engine > --- PROPULSION ------- Aluminum Leg Aluminum Leg Aluminum Leg > --- UTILITY ---------- Small Storage Unit Improved Targeting Computer > --- WEAPON ----------- Particle Gun Improved Light Cannon Mining Claw > --- INVENTORY -------- Ion Engine Aluminum Leg Aluminum Leg Improved Heat Sink Improved Light Cannon Improved Light Cannon [Rating: 13] Favorites ----------- Power Ion Engine Engine Ion Engine Propulsion Aluminum Leg Treads Light Treads Leg Aluminum Leg Utility Small Storage Unit Device ECM Suite Storage Small Storage Unit Processor Improved Targeting Computer Weapon Particle Gun Energy Gun Particle Gun Ballistic Gun Assault Rifle Ballistic Cannon Improved Light Cannon Impact Weapon Maul Slashing Weapon Mining Claw Build | -11 -10 -10 -9 ------- Run | Yrd Mat Min Mat Slots Evolved 2 | . . . 2 Power . | . . . . Propulsion 1 | . . . 1 Utility . | . . . . Weapon 1 | . . . 1 Parts Attached 35 | 6 19 . 10 Power 8 | 1 4 . 3 Engine 8 | 1 4 . 3 Core . | . . . . Reactor . | . . . . Propulsion 11 | 2 6 . 3 Treads 3 | 2 1 . . Leg 8 | . 5 . 3 Wheel . | . . . . Hover . | . . . . Flight . | . . . . Utility 4 | 1 3 . . Device 2 | . 2 . . Storage 1 | 1 . . . Processor 1 | . 1 . . Hackware . | . . . . Protection . | . . . . Artifact . | . . . . Weapon 12 | 2 6 . 4 Energy Gun 4 | 1 2 . 1 Energy Cannon . | . . . . Ballistic Gun 4 | 1 2 . 1 Ballistic Cannon 2 | . 2 . . Launcher . | . . . . Special Weapon . | . . . . Impact Weapon 1 | . . . 1 Slashing Weapon 1 | . . . 1 Piercing Weapon . | . . . . Special Melee Weapon . | . . . . Unidentified Prototypes . | . . . . Parts Lost 9 | . . . 9 Power 1 | . . . 1 Propulsion 4 | . . . 4 Utility . | . . . . Weapon 4 | . . . 4 Highest Loss Streak 4 | . . . 4 To Critical Strikes . | . . . . Average Slot Usage (%) 94 | . 96 100 90 Engine 12 | . 13 14 10 Treads 8 | . 14 . . Leg 18 | . 13 28 25 Device 4 | . 7 . . Storage 12 | . 14 14 11 Processor 8 | . 5 14 11 Energy Gun 10 | . 12 14 5 Ballistic Gun 5 | . 7 . 3 Ballistic Cannon 6 | . 6 14 4 Impact Weapon 2 | . . . 7 Slashing Weapon 3 | . . . 10 Peak Build Rating 13 | 6 11 11 13 Average Rating 9 | 4 7 11 12 On Entrance 7 | . 6 11 11 Naked Turns . | . . . . Heaviest Build 20 | 14 18 17 20 Greatest Support 40 | 40 40 20 30 Greatest Overweight (x) 1 | 1 . . 1 Average Overweight (x) . | . . . . Largest Inventory Capacity 8 | 8 8 8 8 Average Capacity 7 | 7 8 8 8 Most Carried 8 | 4 8 8 8 Average Carried 5 | 2 5 8 6 Final Capacity 8 | 8 8 8 8 Final Carried 8 | 4 8 8 5 Class Distribution -------------------- 60% | Mutant 39% | Scavenger-Mutant Dominant Class ---------------- Mutant | -10/Materials Scavenger-Mutant | -10/Mines Scavenger-Mutant | -9/Materials Resources | -11 -10 -10 -9 ----------- Run | Yrd Mat Min Mat Matter Collected 722 | 197 332 58 135 Remotely . | . . . . Salvage Created 1374 | . 458 16 900 Parts 69 | . 30 3 36 Haulers Intercepted 2 | . . . 2 Recyclers Shooed 2 | . . . 2 Parts Field Recycled . | . . . . Retrieved Matter . | . . . . Parts Self-Destructed . | . . . . Prevented . | . . . . Kills | -11 -10 -10 -9 ------- Run | Yrd Mat Min Mat Combat Hostiles Destroyed 27 | . 11 4 12 Melee 6 | . . . 6 Guns 11 | . 7 1 3 Cannons 7 | . 4 3 . Classes Destroyed 11 | . 5 . 6 Worker 3 | . 1 . 2 Builder 2 | . . . 2 Hauler 2 | . . . 2 Recycler 5 | . 1 . 4 Operator 1 | . . . 1 Watcher 4 | . 2 . 2 Swarmer 10 | . 3 4 3 Grunt 11 | . 8 . 3 Brawler 1 | . . . 1 Duelist 1 | . . . 1 Sentry 4 | . . . 4 Best Kill Streak 10 | . 4 3 10 Combat Bots Only 5 | . 3 3 5 Max Kills in Single Turn 1 | . 1 1 1 Gunslinging . | . . . . Exploded . | . . . . Melee 1 | . . . 1 Uniques/NPCs Destroyed . | . . . . Combat | -11 -10 -10 -9 -------- Run | Yrd Mat Min Mat Hostile Shots Fired 235 | . 52 22 161 Missed 58 | . 12 2 44 Damage Taken 2131 | . 548 169 1414 Core 590 | . 144 41 405 Absorbed by Shields . | . . . . Regen/Repaired (Parts) 55 | . 55 . . Core Remaining (%) 63 | 100 . 26 . Volleys Fired 57 | . 29 11 17 Largest 2 | . 2 2 2 Hottest 104 | . 104 104 104 Shots Fired 96 | . 55 22 19 Gun 64 | . 38 11 15 Cannon 32 | . 17 11 4 Launcher . | . . . . Special . | . . . . Kinetic 64 | . 36 11 17 Thermal 32 | . 19 11 2 Explosive . | . . . . Electromagnetic . | . . . . Robot Hit Streak 14 | . 14 2 6 Robot Miss Streak 4 | . 4 3 2 Penetration Max . | . . . . Secondary Targets 1 | . 1 . . Max Gunslinging Chain 1 | . 1 . . Shots Hit Robots 99 | . 36 10 53 Core Hits 38 | 1 22 4 11 Critical Kills . | . . . . Critical Parts Destroyed 8 | . 1 . 7 Critical Strikes 12 | . 3 2 7 Burn 3 | . 2 1 . Destroy 1 | . 1 . . Blast 1 | . . 1 . Smash 7 | . . . 7 Melee Attacks 56 | . . . 56 Impact 34 | . . . 34 Slashing 22 | . . . 22 Piercing . | . . . . Sneak Attacks 15 | . . . 15 Combat Hostiles . | . . . . Follow-up Attacks 3 | . . . 3 Damage Inflicted 2821 | 3 553 204 2061 Guns 589 | . 335 74 180 Cannons 379 | . 204 130 45 Explosions . | . . . . Melee 1836 | . . . 1836 Ramming 17 | 3 14 . . Kinetic 684 | . 347 130 207 Thermal 284 | . 192 74 18 Explosive . | . . . . Electromagnetic . | . . . . Impact 1436 | . . . 1436 Slashing 400 | . . . 400 Piercing . | . . . . Highest Corruption 1 | . 1 1 . Average Corruption 1 | . 1 1 . Corruption Purged . | . . . . Corruption Blocked . | . . . . Effects 2 | . 2 . . Heat Flow Errors 1 | . 1 . . Energy Discharges 1 | . 1 . . Overload Shots . | . . . . Overflow Damage 841 | . 6 1 834 Projectiles 7 | . 6 1 . Explosions . | . . . . Melee 834 | . . . 834 Knockbacks 5 | . 2 1 2 Impact 2 | . . . 2 Kinetic 3 | . 2 1 . Secondary . | . . . . Self-Inflicted Damage . | . . . . Shots . | . . . . Rammed 4 | 2 2 . . Targets Rammed 6 | 2 4 . . Kicked . | . . . . Crushed 2 | . 2 . . Highest Temperature 336 | . 254 336 33 Average Temperature 82 | . 59 142 18 Received Heat Transfer 804 | . 273 . 531 Siege Activations . | . . . . Robots Corrupted 6 | . . . 6 Combat Hostiles 3 | . . . 3 Parts Fried 10 | . . . 10 Impact Corruptions 27 | . . . 27 Robots Melted . | . . . . Combat Hostiles . | . . . . Parts Melted 1 | . . 1 . Heat Transferred 962 | . 666 259 37 Parts Sabotaged . | . . . . Parts Stolen . | . . . . Parts Stripped . | . . . . Power Chain Reactions . | . . . . Alert | -11 -10 -10 -9 ------- Run | Yrd Mat Min Mat Peak Influence 303 | . 215 100 303 Initial 39 | . . . 39 Average 104 | . 92 72 143 Maximum Alert Level 1 | . 1 . 1 Low Security (%) 92 | 100 98 100 79 Level 1 7 | . 1 . 20 Level 2 . | . . . . Level 3 . | . . . . Level 4 . | . . . . Level 5 . | . . . . High Security . | . . . . Max Security . | . . . . Squads Dispatched 4 | . 2 . 2 Investigation 1 | . . . 1 Extermination . | . . . . Reinforcement 3 | . 2 . 1 Assault . | . . . . Garrison . | . . . . Intercept . | . . . . Searches Triggered . | . . . . Construction Impeded . | . . . . Haulers Reinforced . | . . . . Active Scanning Responses . | . . . . Cargo Convoy Interrupts . | . . . . Stealth | -11 -10 -10 -9 --------- Run | Yrd Mat Min Mat Distress Signals 5 | . 1 . 4 Communications Jammed . | . . . . Distress Signals . | . . . . Times Spotted 49 | . 21 3 25 Peak Tracking Total 6 | . 4 2 6 Tactical Retreats 4 | . 3 . 1 Traps | -11 -10 -10 -9 ------- Run | Yrd Mat Min Mat Traps Triggered 5 | . 5 . . Indirectly . | . . . . Trap Hack Attempts . | . . . . Triggered . | . . . . Disarmed . | . . . . Reprogrammed . | . . . . Reused . | . . . . Traps Extracted . | . . . . Installed . | . . . . Triggered 1 | . . 1 . Machines | -11 -10 -10 -9 ---------- Run | Yrd Mat Min Mat Machines Disabled 3 | . 1 . 2 Max in Single Turn 1 | . 1 . 1 Machines Repaired . | . . . . Machines Dismantled . | . . . . Machines Sabotaged . | . . . . Overloaded Fab Kills . | . . . . Hacking | -11 -10 -10 -9 --------- Run | Yrd Mat Min Mat Machines Accessed 8 | . 6 . 2 Terminals 7 | . 5 . 2 Fabricators . | . . . . Repair Stations 1 | . 1 . . Recycling Units . | . . . . Scanalyzers . | . . . . Garrison Access . | . . . . Total Hacks 20 | . 15 . 5 Successful 7 | . 6 . 1 Failed 13 | . 9 . 4 Catastrophic 4 | . 4 . . Database Lockouts . | . . . . Manual 12 | . 9 . 3 Terminals 17 | . 12 . 5 Fabricators . | . . . . Repair Stations 3 | . 3 . . Recycling Units . | . . . . Scanalyzers . | . . . . Garrison Access . | . . . . Terminal Hacks 5 | . 4 . 1 Terminal Index 1 | . 1 . . Alert Level 1 | . 1 . . Unreport Threat 2 | . 1 . 1 Hauler Manifests 1 | . 1 . . Fabricator Hacks . | . . . . Repair Station Hacks 2 | . 2 . . Scan Component 1 | . 1 . . Repair 1 | . 1 . . Recycling Unit Hacks . | . . . . Scanalyzer . | . . . . Garrison Access Hacks . | . . . . Unauthorized Hacks . | . . . . Terminals . | . . . . Fabricators . | . . . . Repair Stations . | . . . . Recycling Units . | . . . . Scanalyzers . | . . . . Garrison Access . | . . . . Data Cores Recovered . | . . . . Used . | . . . . Hacking Detections 8 | . 6 . 2 Full Trace Events 1 | . 1 . . Feedback Events . | . . . . Feedback Blocked . | . . . . Robot Schematics Acquired . | . . . . Robots Built . | . . . . Authchips . | . . . . Time . | . . . . Total Robot Build Rating . | . . . . Part Schematics Acquired . | . . . . Parts Built . | . . . . Authchips . | . . . . Time . | . . . . Total Part Build Rating . | . . . . Parts Repaired 1 | . 1 . . Time 26 | . 26 . . Parts Recycled . | . . . . Recycled Matter . | . . . . Retrieved Matter . | . . . . Retrieved Components . | . . . . Parts Scanalyzed . | . . . . Part Schematics Acquired . | . . . . Parts Damaged . | . . . . Bothacking | -11 -10 -10 -9 ------------ Run | Yrd Mat Min Mat Used RIF Installer . | . . . . Robots Hacked . | . . . . Non-combat . | . . . . Combat . | . . . . Robot Hacks Applied . | . . . . Relay Couplers Released . | . . . . Fabnet Peak Effective % . | . . . . Robots Rewired . | . . . . Allies Hacked . | . . . . Hacks Repelled . | . . . . Allies | -11 -10 -10 -9 -------- Run | Yrd Mat Min Mat Total Allies . | . . . . Largest Group . | . . . . Highest-Rated Group . | . . . . Highest-Rated Ally . | . . . . Total Orders . | . . . . Ally Attacks . | . . . . Total Damage . | . . . . Kills . | . . . . Allies Corrupted . | . . . . Allies Melted . | . . . . Intel | -11 -10 -10 -9 ------- Run | Yrd Mat Min Mat Robot Analysis Total . | . . . . Derelict Logs Recovered . | . . . . Drone Launches . | . . . . Drone Recoveries . | . . . . Exploration | -11 -10 -10 -9 ------------- Run | Yrd Mat Min Mat Turns Passed 1529 | 75 825 97 532 Spaces Moved 768 | 40 475 53 200 Core 5 | 5 . . . Treads 249 | 35 214 . . Legs 514 | . 261 53 200 Wheels . | . . . . Hover . | . . . . Flight . | . . . . Fastest Speed 50 | 50 120 120 120 Average Speed 137 | 148 138 120 137 Slowest Speed 190 | 160 160 120 190 Overloaded Moves . | . . . . Propulsion Burnouts . | . . . . Robots Hopped . | . . . . Cave-ins Triggered . | . . . . Exploration Rate (%) 30 | 4 77 16 26 Regions Visited 3 Branch Regions 1 Pre-discovered Areas . | . . . . Known Exits Taken . | . . . . Unknown Exits Taken 3 | 1 1 1 . Scrap Searched 1 | . . 1 . Spaces Dug 1 | . . . 1 Terrain Destroyed 1 | . . . 1 Melee 1 | . . . 1 Projectile . | . . . . AOE . | . . . . Terrain Rammed . | . . . . Walls Destroyed . | . . . . Machines Disabled . | . . . . Actions | -11 -10 -10 -9 --------- Run | Yrd Mat Min Mat Total 1040 | 51 589 64 336 Wait 86 | . 37 1 48 Move 765 | 39 474 52 200 Hop . | . . . . Pick Up 22 | 4 12 . 6 Fast Attach 15 | 6 8 . 1 Attach 10 | . 5 . 5 Detach 2 | . 2 . . Swap 10 | . 6 . 4 Drop 17 | . 12 . 5 Fire 57 | . 29 11 17 Melee 50 | . . . 50 Ram . | . . . . Kick . | . . . . Crush 6 | 2 4 . . Escape Stasis . | . . . . Rewire . | . . . . Trap . | . . . . Miscellaneous . | . . . . Route ------- -11/Scrapyard -10/Materials (discovered 4 exits: *Mat x3 / [*Min]) -10/Mines -9/Materials (discovered 4 exits: [*Mat] / [*Min] / [*Sto x2]) History --------- Turn | Location | Event 8 | -11/Scrapyard | Discovered new exit (range 15) 76 | -11/Scrapyard | Entered Materials 318 | -10/Materials | Build established: Mutant 346 | -10/Materials | Repaired Med. Laser 653 | -10/Materials | Discovered new exit (range 6) 670 | -10/Materials | Core integrity fell below 50% 751 | -10/Materials | Discovered new exit (range 12) 796 | -10/Materials | Discovered new exit (range 16) 882 | -10/Materials | Discovered new exit (range 12) 901 | -10/Materials | Entered Mines 983 | -10/Mines | Discovered new exit (range 11) 998 | -10/Mines | Entered Materials 998 | -9/Materials | Evolved 2 slots: Propulsion x1, Weapon x1 1000 | -9/Materials | Discovered new exit (range 7) 1039 | -9/Materials | Build established: Scavenger-Mutant 1168 | -9/Materials | Discovered new exit (range 15) 1273 | -9/Materials | Discovered new exit (range 5) 1400 | -9/Materials | Lost 4 parts (3n1w) 1463 | -9/Materials | Discovered new exit (range 16) 1520 | -9/Materials | Core integrity fell below 50% 1527 | -9/Materials | Core integrity fell below 20% 1530 | -9/Materials | Destroyed by G-34 Mercenary with Small Laser Last Messages --------------- 01458_ U-05 Engineer system terminally corrupted. 01458_ Welding Torch fried. 01463_ EXIT=FOUND 01475_ K-01 Serf collects debris. 01512_ A-02 Transporter system corruption misinterpreted. 01512_ A-02 Transporter triggered Alarm Trap. 01512_ An alarm sounds. 01512_ ALERT: Alarm triggered, dispatching investigation squad. 01513_ Ion Engine destroyed. 01514_ L-31 Rogue knocked back. 01517_ Hvy. Assault Rifle destroyed. 01522_ Mining Claw destroyed. 01522_ Aluminum Leg destroyed. 01523_ Destroyed Core Shielding. 01523_ L-31 Rogue system corrupted by crushing effect. 01524_ L-31 Rogue system terminally corrupted. Map ----- +----------------------------------------------------+ | ???????????????????????????????????????? | | ???????????????????????????????????????? | | ???????????????????????????????????????? | | ????????????# ?????????????????????????? | | ????????????# ?????????######??##??????? | | ????????????# ?????????# #??????? | | ????????????# ?????????# "" #??????? | | ???????????## #????????# T" ??????? | | ???????????# ????????# ! "" #??????? | | ???????????# ????????# #??????? | | ???????????# w #???????#""" #??????? | | ???????????# #?????????"" #??????? | | ???????????# #?????????"" ! ???????? | | ???????????# #??????????? ?#######? | | ???????????# ##############+### #? | | ???????????# % #? | | ???? + % % < #? | | ????""" ] # %%%% ## | | ?????""????## t################# %% | | ????????????# #???????????????## ### | | ????????????# #????????????????# #?? | | ????????????# g #????????????????# #?? | | ????????????# #????????????????# #?? | | ????????????#g #????????????????# #?? | | ????????????# =%#????????????????# #?? | | ????????????# @###+#####????????# #?? | | ????????????# ? #?? | | ????????????+ ? #?? | | ????????????# g ? #?? | | ????????????#g g###+###########?######?? | | ????????????# #??????????????????????? | | ????????????# < #??????????????????????? | | ????????????# #??????????????????????? | | ????????????#####??????????????????????? | | ???????????????????????????????????????? | | ???????????????????????????????????????? | | ???????????????????????????????????????? | | ???????????????????????????????????????? | | ???????????????????????????????????????? | | ???????????????????????????????????????? | | ???????????????????????????????????????? | | ???????????????????????????????????????? | | ???????????????????????????????????????? | | ???????????????????????????????????????? | | ???????????????????????????????????????? | | ???????????????????????????????????????? | | ???????????????????????????????????????? | | ???????????????????????????????????????? | | ???????????????????????????????????????? | | | +----------------------------------------------------+ Best States ------------- Heat Dissipation 28 Energy Generation 12 Energy Capacity 265 Matter Stores 300 Matter Capacity 300 Sight Range 16 Terrain Scan Density 10 ECM Strength 1 Evasion (%) 55 Targeting Accuracy 6 Recoil Reduction 2 Item Schematics ----------------- None Robot Schematics ------------------ None Fabricated ------------ Nothing Alien Tech Used ----------------- None Achievements -------------- None Challenges ------------ None Game ------ Seed ImpactActuatorImmobilizer Manual? 0 Play Time 00:23:48 Cumulative 20.4 hours Start 2024.11.11 @ 00:03:54 End 2024.11.11 @ 00:33:38 Sessions 1 Manual Loads 0 Difficulty Rogue Special Mode None Game No. 19 Rogue 19 Adventurer 0 Explorer 0 Win Type - Total 0 Types 0/0/0/0/0/0/0/0/0 Lore% 9 Gallery% 21 Achievement% 19 Wizard Run 0 Options --------- Layout 1 ASCII 0 Keyboard 1 Movement Numpad Keybinds 0 Fullscreen 1 Font 24/Smallcaps Map View 50x35 Zoom Use 0% Tactical HUD 1 Map Filters NONE Filters NONE Steam 1 RUN: f02ca8e6-64b0-4a49-8ec1-d4b6b48ff425